Workbook

Sheet Bilanz_Daten
C3: Lernmodul M 04
C4: Betriebswirtschaftliche Kennzahlen
C6: Thema: Fallbeispiel zur Bilanz- und Erfolgsanalyse
C8: 1. Bilanz-Daten
C10: Die MaBau AG hat ihre Bilanz zum Bilanzstichtag | H10: =CONCATENATE("31.12." & YEAR(NOW())-1) -> 31.12.2021 | I10: zur Jahresabschlussanalyse vorbereitet.
C11: Der erwirtschafte Jahresüberschuss betrug | H11: 1026 | I11: TEUR
C12: Davon wurden | E12: 800 | F12: TEUR in Gewinnrücklagen eingestellt.
C13: Der verbleibende Bilanzgewinn in Höhe von | H13: =H11-E12 -> 226 | I13: TEUR soll kurzfristig ausgeschüttet werden.
C14: Es wurden im Abschlussjahr Investitionen in Höhe von | I14: 3075 | K14: TEUR vorgenomen,
C15: Die Daten für die Jahresabschlussanalyse sind der nachfolgenden Tabelle zu entnehmen.
E17: =CONCATENATE("Bilanz der MaBau AG zum 31.12." & YEAR(NOW())-1) -> Bilanz der MaBau AG zum 31.12.2021 | M17: Angaben in TEUR
D19: AKTIVA | N19: PASSIVA
H21: =CONCATENATE("31.12." & YEAR(NOW())-1) -> 31.12.2021 | I21: =CONCATENATE("31.12." & YEAR(NOW())-2) -> 31.12.2020 | N21: =CONCATENATE("31.12." & YEAR(NOW())-1) -> 31.12.2021 | O21: =CONCATENATE("31.12." & YEAR(NOW())-2) -> 31.12.2020
D23: Immaterielle Vermögensgegenstände | H23: 120 | I23: 80 | L23: Gezeichnetes Kapital | N23: 700 | O23: 700
D24: Grundstücke und Bauten | H24: 1910 | I24: 1860 | L24: Kapitalrücklage | N24: =2100+300+280 -> 2680 | O24: =2100+300+280 -> 2680
D25: Technische Anlagen und Maschinen | H25: 1820 | I25: 1710 | L25: Gewinnrücklagen | N25: 1410 | O25: 610
D26: Betriebs- und Geschäftsausstattung | H26: 1270 | I26: 1190 | L26: Bilanzgewinn | N26: =H41-SUM(N23:N25)-SUM(N28:N38) -> 226 | O26: =I41-SUM(O23:O25)-SUM(O28:O38) -> 0
D27: Beteiligungen | H27: 825 | I27: 800
D28: Wertpapiere des Anlagevermögens | H28: 760 | I28: 710 | L28: Rückstellungen für Pensionen | N28: 1650 | O28: 1880
D30: Roh-, Hilfs- und Betriebsstoffe | H30: 1010 | I30: 1290 | L30: Steuerrückstellungen | N30: 240 | O30: 200
D31: Unfertige Erzeugnisse | H31: 680 | I31: 790 | L31: Sonstige Rückstellungen | N31: 2660 | O31: 2140
D32: Fertige Erzeugnisse und Waren | H32: 540 | I32: 720
D33: Forderungen aLuL | H33: 1130 | I33: 580 | L33: Verbindlichkeiten gg. Kreditinstituten | N33: 980 | O33: 1310
D34: Wertpapiere des Umlaufvermögens | H34: 960 | I34: 1020 | L34: Verbindlichkeiten aLuL | N34: 520 | O34: 920
D35: Sonstige Vermögensgegenstände | H35: 110 | I35: 90 | L35: Sonstige Verbindlichkeiten | N35: =920 -> 920 | O35: 1040
D36: Liquide Mittel | H36: 820 | I36: 590
D38: Rechnungsabgrenzungsposten | H38: 45 | I38: 70 | L38: Rechnungsabgrenzungsposten | N38: 14 | O38: 20
H41: =SUM(H23:H38) -> 12000 | I41: =SUM(I23:I38) -> 11500 | N41: =SUM(N23:N38) -> 12000 | O41: =SUM(O23:O38) -> 11500

Sheet Strukturbilanz
C3: =Bilanz_Daten!C3 -> Lernmodul M 04
C4: =Bilanz_Daten!C4 -> Betriebswirtschaftliche Kennzahlen
C6: =Bilanz_Daten!C6 -> Thema: Fallbeispiel zur Bilanz- und Erfolgsanalyse
C8: 2. Strukturbilanz
C10: AKTIVA | D10: Berichtsjahr | E10: % | F10: Vorjahr | G10: % | H10: Verän-derung
D11: =YEAR(NOW())-1 -> 2021 | F11: =YEAR(NOW())-2 -> 2020
C12: Immaterielle Vermögensgegenstände | D12: =Bilanz_Daten!H23 -> 120 | E12: =D12*100/$D$22 -> 1 | F12: =Bilanz_Daten!I23 -> 80 | G12: =F12*100/$F$22 -> 0.6956521739 | H12: =D12-F12 -> 40
C13: Sachanlagen | D13: =SUM(Bilanz_Daten!H24:H26) -> 5000 | E13: =D13*100/$D$22 -> 41.66666667 | F13: =SUM(Bilanz_Daten!I24:I26) -> 4760 | G13: =F13*100/$F$22 -> 41.39130435 | H13: 240
C14: Finanzanlagen | D14: =Bilanz_Daten!H27+Bilanz_Daten!H28 -> 1585 | E14: =D14*100/D22 -> 13.20833333 | F14: =Bilanz_Daten!I27+Bilanz_Daten!I28 -> 1510 | G14: =F14*100/$F$22 -> 13.13043478 | H14: 75
C15: Anlagevermögen | D15: =SUM(D12:D14) -> 6705 | E15: =SUM(E12:E14) -> 55.875 | F15: =SUM(F12:F14) -> 6350 | G15: =SUM(G12:G14) -> 55.2173913 | H15: 355
C16: Vorräte | D16: =SUM(Bilanz_Daten!H30:H32) -> 2230 | E16: =D16*100/$D$22 -> 18.58333333 | F16: =SUM(Bilanz_Daten!I30:I32) -> 2800 | G16: =F16*100/$F$22 -> 24.34782609 | H16: -570
C17: Forderungen und sonst. Vermögensgegenstände | D17: =Bilanz_Daten!H33+Bilanz_Daten!H35 -> 1240 | E17: =D17*100/$D$22 -> 10.33333333 | F17: =Bilanz_Daten!I33+Bilanz_Daten!I35 -> 670 | G17: =F17*100/$F$22 -> 5.826086957 | H17: 570
C18: Wertpapiere | D18: =Bilanz_Daten!H34 -> 960 | E18: =D18*100/$D$22 -> 8 | F18: =Bilanz_Daten!I34 -> 1020 | G18: =F18*100/$F$22 -> 8.869565217 | H18: -60
C19: Flüssige Mittel | D19: =Bilanz_Daten!H36 -> 820 | E19: =D19*100/$D$22 -> 6.833333333 | F19: =Bilanz_Daten!I36 -> 590 | G19: =F19*100/$F$22 -> 5.130434783 | H19: 230
C20: Aktive Rechnungsabgrenzung | D20: =Bilanz_Daten!H38 -> 45 | E20: =D20*100/$D$22 -> 0.375 | F20: =Bilanz_Daten!I38 -> 70 | G20: =F20*100/$F$22 -> 0.6086956522 | H20: -25
C21: Umlaufvermögen | D21: =SUM(D16:D20) -> 5295 | E21: =SUM(E16:E20) -> 44.125 | F21: =SUM(F16:F20) -> 5150 | G21: =SUM(G16:G20) -> 44.7826087 | H21: 145
C22: Gesamtvermögen | D22: =D15+D21 -> 12000 | E22: =E15+E21 -> 100 | F22: =F15+F21 -> 11500 | G22: =G15+G21 -> 100 | H22: =D22-F22 -> 500
C24: PASSIVA | D24: Berichtsjahr | E24: % | F24: Vorjahr | G24: % | H24: Verän-derung
D25: =YEAR(NOW())-1 -> 2021 | F25: =YEAR(NOW())-2 -> 2020
C26: Gezeichnetes Kapital | D26: =Bilanz_Daten!N23 -> 700 | E26: =D26*100/$D$38 -> 5.833333333 | F26: =Bilanz_Daten!O23 -> 700 | G26: =F26*100/$F$38 -> 6.086956522 | H26: =D26-F26 -> 0
C27: Kapitalrücklagen | D27: =Bilanz_Daten!N24 -> 2680 | E27: 22.33333333 | F27: =Bilanz_Daten!O24 -> 2680 | G27: 23.30434783
C28: Gewinnrücklagen | D28: =Bilanz_Daten!N25 -> 1410 | E28: 11.75 | F28: =Bilanz_Daten!O25 -> 610 | G28: 5.304347826 | H28: 800
C29: Eigenkapital | D29: =SUM(D26:D28) -> 4790 | E29: 39.91666667 | F29: =SUM(F26:F28) -> 3990 | G29: 34.69565217 | H29: 800
C30: Langfristige Rückstellungen | D30: =Bilanz_Daten!N28 -> 1650 | E30: 13.75 | F30: =Bilanz_Daten!O28 -> 1880 | G30: 16.34782609 | H30: -230
C31: Langfristige. Verbindlichkeiten | D31: =Bilanz_Daten!N33 -> 980 | E31: 8.166666667 | F31: =Bilanz_Daten!O33 -> 1310 | G31: 11.39130435 | H31: -330
C32: Langfristiges Fremdkapital | D32: =D30+D31 -> 2630 | E32: 21.91666667 | F32: =F30+F31 -> 3190 | G32: 27.73913043 | H32: -560
C33: Kurzfristige Verbindlichkeiten, inklus. Dividendenzahlungen (Bilanzgewinn) | D33: =Bilanz_Daten!N34+Bilanz_Daten!N35+Bilanz_Daten!N26 -> 1666 | E33: 13.88333333 | F33: =Bilanz_Daten!O34+Bilanz_Daten!O35 -> 1960 | G33: 17.04347826 | H33: -294
C34: Steuerrückstellungen | D34: =Bilanz_Daten!N30 -> 240 | E34: 2 | F34: =Bilanz_Daten!O30 -> 200 | G34: 1.739130435 | H34: 40
C35: Sonstige Rückstellungen | D35: =Bilanz_Daten!N31 -> 2660 | E35: 22.16666667 | F35: =Bilanz_Daten!O31 -> 2140 | G35: 18.60869565 | H35: 520
C36: Passive Rechnungsabgrenzung | D36: =Bilanz_Daten!N38 -> 14 | E36: 0.1166666667 | F36: =Bilanz_Daten!O38 -> 20 | G36: 0.1739130435 | H36: -6
C37: Kurzfristiges Fremdkapital | D37: =SUM(D33:D36) -> 4580 | E37: 38.16666667 | F37: =SUM(F33:F36) -> 4320 | G37: 37.56521739 | H37: 260
C38: Gesamtkapital | D38: =D29+D32+D37 -> 12000 | E38: =E29+E32+E37 -> 100 | F38: =F29+F32+F37 -> 11500 | G38: =G29+G32+G37 -> 100 | H38: =D38-F38 -> 500

Sheet Strukturbilanz_L (hidden)
C3: =Bilanz_Daten!C3 -> Lernmodul M 04
C4: =Bilanz_Daten!C4 -> Betriebswirtschaftliche Kennzahlen
C6: =Bilanz_Daten!C6 -> Thema: Fallbeispiel zur Bilanz- und Erfolgsanalyse
C8: 2. Strukturbilanz: Musterlösung
C10: AKTIVA | D10: Berichtsjahr | E10: % | F10: Vorjahr | G10: % | H10: Verän-derung
D11: =YEAR(NOW())-1 -> 2021 | F11: =YEAR(NOW())-2 -> 2020
C12: Immaterielle Vermögensgegenstände | D12: =Bilanz_Daten!H23 -> 120 | E12: =D12*100/$D$22 -> 1 | F12: =Bilanz_Daten!I23 -> 80 | G12: =F12*100/$F$22 -> 0.6956521739 | H12: =D12-F12 -> 40
C13: Sachanlagen | D13: =SUM(Bilanz_Daten!H24:H26) -> 5000 | E13: =D13*100/$D$22 -> 41.66666667 | F13: =SUM(Bilanz_Daten!I24:I26) -> 4760 | G13: =F13*100/$F$22 -> 41.39130435 | H13: 240
C14: Finanzanlagen | D14: =Bilanz_Daten!H27+Bilanz_Daten!H28 -> 1585 | E14: =D14*100/D22 -> 13.20833333 | F14: =Bilanz_Daten!I27+Bilanz_Daten!I28 -> 1510 | G14: =F14*100/$F$22 -> 13.13043478 | H14: 75
C15: Anlagevermögen | D15: =SUM(D12:D14) -> 6705 | E15: =SUM(E12:E14) -> 55.875 | F15: =SUM(F12:F14) -> 6350 | G15: =SUM(G12:G14) -> 55.2173913 | H15: 355
C16: Vorräte | D16: =SUM(Bilanz_Daten!H30:H32) -> 2230 | E16: =D16*100/$D$22 -> 18.58333333 | F16: =SUM(Bilanz_Daten!I30:I32) -> 2800 | G16: =F16*100/$F$22 -> 24.34782609 | H16: -570
C17: Forderungen und sonst. Vermögensgegenstände | D17: =Bilanz_Daten!H33+Bilanz_Daten!H35 -> 1240 | E17: =D17*100/$D$22 -> 10.33333333 | F17: =Bilanz_Daten!I33+Bilanz_Daten!I35 -> 670 | G17: =F17*100/$F$22 -> 5.826086957 | H17: 570
C18: Wertpapiere | D18: =Bilanz_Daten!H34 -> 960 | E18: =D18*100/$D$22 -> 8 | F18: =Bilanz_Daten!I34 -> 1020 | G18: =F18*100/$F$22 -> 8.869565217 | H18: -60
C19: Flüssige Mittel | D19: =Bilanz_Daten!H36 -> 820 | E19: =D19*100/$D$22 -> 6.833333333 | F19: =Bilanz_Daten!I36 -> 590 | G19: =F19*100/$F$22 -> 5.130434783 | H19: 230
C20: Aktive Rechnungsabgrenzung | D20: =Bilanz_Daten!H38 -> 45 | E20: =D20*100/$D$22 -> 0.375 | F20: =Bilanz_Daten!I38 -> 70 | G20: =F20*100/$F$22 -> 0.6086956522 | H20: -25
C21: Umlaufvermögen | D21: =SUM(D16:D20) -> 5295 | E21: =SUM(E16:E20) -> 44.125 | F21: =SUM(F16:F20) -> 5150 | G21: =SUM(G16:G20) -> 44.7826087 | H21: 145
C22: Gesamtvermögen | D22: =D15+D21 -> 12000 | E22: =E15+E21 -> 100 | F22: =F15+F21 -> 11500 | G22: =G15+G21 -> 100 | H22: =D22-F22 -> 500
C24: PASSIVA | D24: Berichtsjahr | E24: % | F24: Vorjahr | G24: % | H24: Verän-derung
D25: =YEAR(NOW())-1 -> 2021 | F25: =YEAR(NOW())-2 -> 2020
C26: Gezeichnetes Kapital | D26: =Bilanz_Daten!N23 -> 700 | E26: =D26*100/$D$38 -> 5.833333333 | F26: =Bilanz_Daten!O23 -> 700 | G26: =F26*100/$F$38 -> 6.086956522 | H26: =D26-F26 -> 0
C27: Kapitalrücklagen | D27: =Bilanz_Daten!N24 -> 2680 | E27: 22.33333333 | F27: =Bilanz_Daten!O24 -> 2680 | G27: 23.30434783
C28: Gewinnrücklagen | D28: =Bilanz_Daten!N25 -> 1410 | E28: 11.75 | F28: =Bilanz_Daten!O25 -> 610 | G28: 5.304347826 | H28: 800
C29: Eigenkapital | D29: =SUM(D26:D28) -> 4790 | E29: 39.91666667 | F29: =SUM(F26:F28) -> 3990 | G29: 34.69565217 | H29: 800
C30: Langfristige Rückstellungen | D30: =Bilanz_Daten!N28 -> 1650 | E30: 13.75 | F30: =Bilanz_Daten!O28 -> 1880 | G30: 16.34782609 | H30: -230
C31: Langfristige. Verbindlichkeiten | D31: =Bilanz_Daten!N33 -> 980 | E31: 8.166666667 | F31: =Bilanz_Daten!O33 -> 1310 | G31: 11.39130435 | H31: -330
C32: Langfristiges Fremdkapital | D32: =D30+D31 -> 2630 | E32: 21.91666667 | F32: =F30+F31 -> 3190 | G32: 27.73913043 | H32: -560
C33: Kurzfristige Verbindlichkeiten, inklus. Dividendenzahlungen (Bilanzgewinn) | D33: =Bilanz_Daten!N34+Bilanz_Daten!N35+Bilanz_Daten!N26 -> 1666 | E33: 13.88333333 | F33: =Bilanz_Daten!O34+Bilanz_Daten!O35 -> 1960 | G33: 17.04347826 | H33: -294
C34: Steuerrückstellungen | D34: =Bilanz_Daten!N30 -> 240 | E34: 2 | F34: =Bilanz_Daten!O30 -> 200 | G34: 1.739130435 | H34: 40
C35: Sonstige Rückstellungen | D35: =Bilanz_Daten!N31 -> 2660 | E35: 22.16666667 | F35: =Bilanz_Daten!O31 -> 2140 | G35: 18.60869565 | H35: 520
C36: Passive Rechnungsabgrenzung | D36: =Bilanz_Daten!N38 -> 14 | E36: 0.1166666667 | F36: =Bilanz_Daten!O38 -> 20 | G36: 0.1739130435 | H36: -6
C37: Kurzfristiges Fremdkapital | D37: =SUM(D33:D36) -> 4580 | E37: 38.16666667 | F37: =SUM(F33:F36) -> 4320 | G37: 37.56521739 | H37: 260
C38: Gesamtkapital | D38: =D29+D32+D37 -> 12000 | E38: =E29+E32+E37 -> 100 | F38: =F29+F32+F37 -> 11500 | G38: =G29+G32+G37 -> 100 | H38: =D38-F38 -> 500

Sheet Bewegungsbilanz
B3: =Bilanz_Daten!B6 -> 0 | C3: =Bilanz_Daten!C3 -> Lernmodul M 04
C4: =Bilanz_Daten!C4 -> Betriebswirtschaftliche Kennzahlen
C6: =Bilanz_Daten!C6 -> Thema: Fallbeispiel zur Bilanz- und Erfolgsanalyse
C8: 3. Bewegungsbilanz
D11: =CONCATENATE("Bewegungsbilanz der MaBau AG - Geschäftsjahr " & YEAR(NOW())-1) -> Bewegungsbilanz der MaBau AG - Geschäftsjahr 2021
D13: Mittelverwendung
D15: Zugang AKTIVA | J15: Abnahme AKTIVA
D17: Immaterielle Vermögensgegenstände | J17: Roh-, Hilfs- und Betriebsstoffe
D18: Grundstücke und Bauten | J18: Unfertige Erzeugnisse
D19: Technische Anlagen und Maschinen | J19: Fertige Erzeugnisse und Waren
D20: Betriebs- und Geschäftsausstattung | J20: Wertpapiere des Umlaufvermögens
J21: Aktive Rechnungsabgrenzung
D22: Beteiligungen
D23: Wertpapiere des Anlagevermögens | J23: Zunahme PASSIVA
D25: Forderungen aLuL | J25: Gewinnrücklagen
D26: Sonstige Vermögensgegenstände | J26: Bilanzgewinn
D27: Liquide Mittel
J28: Steuerrückstellungen
D29: Abnahme PASSIVA | J29: Sonstige Rückstellungen
D31: Rückstellungen für Pensionen
D32: Verbindlichkeiten gg. Kreditinstituten
D33: Verbindlichkeiten aLuL
D34: Sonstige Verbindlichkeiten
D35: Passive Rechnungsabgrenzung

Sheet Bewegungsbilanz_L (hidden)
B3: =Bilanz_Daten!B6 -> 0 | C3: =Bilanz_Daten!C3 -> Lernmodul M 04
C4: =Bilanz_Daten!C4 -> Betriebswirtschaftliche Kennzahlen
C6: =Bilanz_Daten!C6 -> Thema: Fallbeispiel zur Bilanz- und Erfolgsanalyse
C8: 3. Bewegungsbilanz: Musterlösung
D11: =CONCATENATE("Bewegungsbilanz der MaBau AG - Geschäftsjahr " & YEAR(NOW())-1) -> Bewegungsbilanz der MaBau AG - Geschäftsjahr 2021
D13: Mittelverwendung
D15: Zugang AKTIVA | J15: Abnahme AKTIVA
D17: Immaterielle Vermögensgegenstände | G17: =Bilanz_Daten!H23-Bilanz_Daten!I23 -> 40 | J17: Roh-, Hilfs- und Betriebsstoffe | K17: =Bilanz_Daten!I30-Bilanz_Daten!H30 -> 280
D18: Grundstücke und Bauten | G18: =Bilanz_Daten!H24-Bilanz_Daten!I24 -> 50 | J18: Unfertige Erzeugnisse | K18: =Bilanz_Daten!I31-Bilanz_Daten!H31 -> 110
D19: Technische Anlagen und Maschinen | G19: =Bilanz_Daten!H25-Bilanz_Daten!I25 -> 110 | J19: Fertige Erzeugnisse und Waren | K19: =Bilanz_Daten!I32-Bilanz_Daten!H32 -> 180
D20: Betriebs- und Geschäftsausstattung | G20: =Bilanz_Daten!H26-Bilanz_Daten!I26 -> 80 | J20: Wertpapiere des Umlaufvermögens | K20: =Bilanz_Daten!I34-Bilanz_Daten!H34 -> 60
J21: Aktive Rechnungsabgrenzung | K21: =Bilanz_Daten!I38-Bilanz_Daten!H38 -> 25
D22: Beteiligungen | G22: =Bilanz_Daten!H27-Bilanz_Daten!I27 -> 25
D23: Wertpapiere des Anlagevermögens | G23: =Bilanz_Daten!H28-Bilanz_Daten!I28 -> 50 | J23: Zunahme PASSIVA
D25: Forderungen aLuL | G25: =Bilanz_Daten!H33-Bilanz_Daten!I33 -> 550 | J25: Gewinnrücklagen | K25: =Bilanz_Daten!N25-Bilanz_Daten!O25 -> 800
D26: Sonstige Vermögensgegenstände | G26: =Bilanz_Daten!H35-Bilanz_Daten!I35 -> 20 | J26: Bilanzgewinn | K26: =Bilanz_Daten!N26-Bilanz_Daten!O26 -> 226
D27: Liquide Mittel | G27: =Bilanz_Daten!H36-Bilanz_Daten!I36 -> 230
J28: Steuerrückstellungen | K28: =Bilanz_Daten!N30-Bilanz_Daten!O30 -> 40
D29: Abnahme PASSIVA | J29: Sonstige Rückstellungen | K29: =Bilanz_Daten!N31-Bilanz_Daten!O31 -> 520
D31: Rückstellungen für Pensionen | G31: =Bilanz_Daten!O28-Bilanz_Daten!N28 -> 230
D32: Verbindlichkeiten gg. Kreditinstituten | G32: =Bilanz_Daten!O33-Bilanz_Daten!N33 -> 330
D33: Verbindlichkeiten aLuL | G33: =Bilanz_Daten!O34-Bilanz_Daten!N34 -> 400
D34: Sonstige Verbindlichkeiten | G34: =Bilanz_Daten!O35-Bilanz_Daten!N35 -> 120
D35: Passive Rechnungsabgrenzung | G35: =Bilanz_Daten!O38-Bilanz_Daten!N38 -> 6
G38: =SUM(G17:G35) -> 2241 | K38: =SUM(K17:K35) -> 2241

Sheet GuV_Daten
C3: =Bilanz_Daten!C3 -> Lernmodul M 04
B4: =Bilanz_Daten!B2 -> 0 | C4: =Bilanz_Daten!C4 -> Betriebswirtschaftliche Kennzahlen
B5: =Bilanz_Daten!B6 -> 0
C6: =Bilanz_Daten!C6 -> Thema: Fallbeispiel zur Bilanz- und Erfolgsanalyse
C8: 4. Aufbereitete GuV-Daten | F8: Angaben in TEUR
C10: Positionen | E10: Berichtsjahr | G10: Vorjahr
E11: =YEAR(NOW())-1 -> 2021 | G11: =YEAR(NOW())-2 -> 2020
C12: 1. | D12: Umsatzerlöse | F12: 49560 | H12: 43670
C13: 2. | D13: Bestandserhöhung FE | F13: 1020 | H13: 1090
C14: 3. | D14: anere aktivierte Eigenleistungen | F14: 50 | H14: 70
C15: 4. | D15: Sonstige betriebliche Erträge | F15: 180 | H15: 125
C16: 5. | D16: Gesamtleistung (Summe Nr. 1 bis Nr. 4) | F16: =SUM(F12:F15) -> 50810 | H16: =SUM(H12:H15) -> 44955
C17: 6. | D17: Materialaufwand | E17: 26560 | G17: 24260
C18: 7. | D18: Personalaufwand | E18: 14440 | G18: 11900
C19: 8. | D19: Abschreibungen | E19: =2900-180 -> 2720 | G19: 2380
C20: 9. | D20: Sonstige betriebliche Aufwendungen | E20: 5724 | G20: 5220
C21: 10. | D21: Betrieblicher Aufwand (Nr. 6 bis Nr. 9) | E21: =SUM(E17:E20) -> 49444 | G21: =SUM(G17:G20) -> 43760
C22: 11. | D22: Betriebsergebnis (Nr. 5 ./. 10) | E22: =F16-E21 -> 1366 | G22: =H16-G21 -> 1195
C23: 12. | D23: Erträge aus Beteiligungen | F23: 365 | H23: 320
C24: 13. | D24: Erträge aus anderen Wertpapieren | F24: 40 | H24: 30
C25: 14. | D25: Zinserträge | F25: 90 | H25: 70
C26: 15. | D26: Zinsaufwendungen | E26: 455 | G26: 540
C27: 16. | D27: Finanzergebnis (Nr. 12 + 13 + 14 ./. 15) | E27: =SUM(F23:F25)-E26 -> 40 | H27: =SUM(H23:H25)-G26 -> -120
C28: 17. | D28: Ergebnis der gewöhnlichen Geschäftstätigkeit (Nr. 11 + 16) | E28: =E22+E27 -> 1406 | G28: =G22+H27 -> 1075
C29: 18. | D29: außerordentliche Erträge | F29: 230 | H29: 240
C30: 19. | D30: außerordentliche Aufwendungen | E30: 190 | G30: 180
C31: 20. | D31: außerordentliches Ergebnis (Nr. 18 ./. 19) | E31: =F29-E30 -> 40 | G31: =H29-G30 -> 60
C32: 21. | D32: Ergebnis vor Steuern (Nr. 17 + Nr. 20) | E32: =E28+E31 -> 1446 | G32: =G28+G31 -> 1135
C33: 22. | D33: Steuern vom Einkommen und Ertrag | E33: 180 | G33: 160
C34: 23. | D34: Sonstige Steuern | E34: 240 | G34: 230
C35: 24. | D35: Jahresüberschuss (Nr. 21 ./. 22 ./. 23) | E35: =E32-E33-E34 -> 1026 | G35: =G32-G33-G34 -> 745
C36: 25. | D36: Einstellung in Gewinnrücklagen | E36: 800 | G36: 400
C37: 26. | D37: Bilanzgewinn | E37: =E35-E36 -> 226 | G37: =G35-G36 -> 345

Sheet Kapitalfluss
B3: =Bilanz_Daten!B6 -> 0 | C3: =Bilanz_Daten!C3 -> Lernmodul M 04
C4: =Bilanz_Daten!C4 -> Betriebswirtschaftliche Kennzahlen
C6: =Bilanz_Daten!C6 -> Thema: Fallbeispiel zur Bilanz- und Erfolgsanalyse
C8: 5. Kapitalflussrechnung | E8: Geschäftsjahr: | F8: =YEAR(NOW())-1 -> 2021
E9: Angaben in TEUR
C11: 0. | D11: Liquide Mittel zu Beginn des Jahres | G11: =Bilanz_Daten!I36 -> 590
C13: 1. | D13: Jahresüberschuss
C14: 2. | D14: Abschreibungen
C15: 3. | D15: Zu-/Abnahme der Vorräte
C16: 4. | D16: Zu-/Abnahme der Forderungen
C17: 5. | D17: Zu-/Abnahme der Wertpapiere und sonst. Vermögensgegenst.
C18: 6. | D18: Zu-/Abnahme aktive Rechnungsabgrenzung
C19: 7. | D19: Zu-/Abnahme der Rückstellungen
C20: 8. | D20: Zu-/Abnahme der Verbindlichkeiten aLuL
C21: 9. | D21: Zu-/Abnahme der sonst. Verbindlichkeiten
C22: 10. | D22: Zu-/Abnahme passive Rechnungsabgrenzung
C23: 11. | D23: Operativer Cashflow
C25: 12. | D25: Zu-/Abnahme Anlagevermögen
C26: 13. | D26: Cashflow aus Investitionen
C28: 14. | D28: Zu-/Abnahme Verbindlichkeiten gg. Kreditinstituten
C29: 15. | D29: Cashflow aus Finanzierungstätigkeit
C31: 16. | D31: Netto-Cashflow
C33: 17. | D33: Liquide Mittel am Ende des Jahres | G33: =Bilanz_Daten!H36 -> 820
C34: 18. | D34: Kontrolle: Liquide Mittel zu Beginn des Jahres plus Netto-Cashflow

Sheet Kapitalfluss_L (hidden)
B3: =Bilanz_Daten!B6 -> 0 | C3: =Bilanz_Daten!C3 -> Lernmodul M 04
C4: =Bilanz_Daten!C4 -> Betriebswirtschaftliche Kennzahlen
C6: =Bilanz_Daten!C6 -> Thema: Fallbeispiel zur Bilanz- und Erfolgsanalyse
C8: 5. Kapitalflussrechnung: Musterlösung | E8: Geschäftsjahr: | F8: =YEAR(NOW())-1 -> 2021
E9: Angaben in TEUR
C11: 0. | D11: Liquide Mittel zu Beginn des Jahres | G11: =Bilanz_Daten!I36 -> 590
C13: 1. | D13: Jahresüberschuss | E13: =GuV_Daten!E35 -> 1026
C14: 2. | D14: Abschreibungen | E14: =GuV_Daten!E19 -> 2720
C15: 3. | D15: Zu-/Abnahme der Vorräte | E15: =SUM(Bilanz_Daten!I30:I32)-SUM(Bilanz_Daten!H30:H32) -> 570
C16: 4. | D16: Zu-/Abnahme der Forderungen | E16: =Bilanz_Daten!I33-Bilanz_Daten!H33 -> -550
C17: 5. | D17: Zu-/Abnahme der Wertpapiere und sonst. Vermögensgegenst. | E17: =Bilanz_Daten!I34+Bilanz_Daten!I35-Bilanz_Daten!H34-Bilanz_Daten!H35 -> 40
C18: 6. | D18: Zu-/Abnahme aktive Rechnungsabgrenzung | E18: =Bilanz_Daten!I38-Bilanz_Daten!H38 -> 25
C19: 7. | D19: Zu-/Abnahme der Rückstellungen | E19: =SUM(Bilanz_Daten!N28:N31)-SUM(Bilanz_Daten!O28:O31) -> 330
C20: 8. | D20: Zu-/Abnahme der Verbindlichkeiten aLuL | E20: =Bilanz_Daten!N34-Bilanz_Daten!O34 -> -400
C21: 9. | D21: Zu-/Abnahme der sonst. Verbindlichkeiten | E21: =Bilanz_Daten!N35-Bilanz_Daten!O35 -> -120
C22: 10. | D22: Zu-/Abnahme passive Rechnungsabgrenzung | E22: =Bilanz_Daten!N38-Bilanz_Daten!O38 -> -6
C23: 11. | D23: Operativer Cashflow | F23: =SUM(E13:E22) -> 3635
C25: 12. | D25: Zu-/Abnahme Anlagevermögen | E25: =SUM(Bilanz_Daten!I23:I28)-SUM(Bilanz_Daten!H23:H28)-E14 -> -3075
C26: 13. | D26: Cashflow aus Investitionen | F26: =E25 -> -3075
C28: 14. | D28: Zu-/Abnahme Verbindlichkeiten gg. Kreditinstituten | E28: =Bilanz_Daten!N33-Bilanz_Daten!O33 -> -330
C29: 15. | D29: Cashflow aus Finanzierungstätigkeit | F29: =SUM(E28:E28) -> -330
C31: 16. | D31: Netto-Cashflow | F31: =SUM(F23:F29) -> 230
C33: 17. | D33: Liquide Mittel am Ende des Jahres | G33: =Bilanz_Daten!H36 -> 820
C34: 18. | D34: Kontrolle: Liquide Mittel zu Beginn des Jahres plus Netto-Cashflow | G34: =G11+F31 -> 820

Sheet Kennz1
C3: =Bilanz_Daten!C3 -> Lernmodul M 04
C4: =Bilanz_Daten!C4 -> Betriebswirtschaftliche Kennzahlen
C6: =Bilanz_Daten!C6 -> Thema: Fallbeispiel zur Bilanz- und Erfolgsanalyse
C8: 6. Teil Bilanzanalyse
C9: 6.1 Analyse der Vermögensstruktur: Musterlösung
C11: Angaben in [1000 EUR] | F11: Berichtsjahr | G11: Vorjahr
E12: Anlagevermögen
E13: Umlaufvermögen
C14: Konstitution
C16: Angaben in [1000 EUR] | F16: Berichtsjahr | G16: Vorjahr
E17: Anlagevermögen
E18: Gesamtvermögen
C19: Anlagenintensität [%]
C21: Angaben in [1000 EUR] | F21: Berichtsjahr | G21: Vorjahr
E22: Umlaufvermögen
E23: Gesamtvermögen
C24: Umlaufmittelintensität [%]
C26: 6.2 Analyse der Anlagendeckung: Musterlösung
C28: Angaben in [1000 EUR] | F28: Berichtsjahr | G28: Vorjahr
E29: Eigenkapital
E30: Anlagevermögen
C31: Deckungsgrad 1 [%]
C33: Angaben in [1000 EUR] | F33: Berichtsjahr | G33: Vorjahr
C37: Deckungsgrad 2 [%]
C40: Vermögensdeckungsrechnung | E40: Berichtsjahr | F40: Vorjahr | G40: Veränderung
C41: Eigenkapital
C42: ./. Anlagevermögen
C43: = Über- oder Unterdeckung
C44: durch Eigenkapital
C45: + Langfristiges Fremdkapital
C46: = langfr. Kapital zur Finanzierung
C47: des Umlaufvermögens
C48: ./. Umlaufvermögen
C49: = notwendiges kurzfrist. Fremdkapital zur
C50: Finanzierung des Umlaufvermögens

Sheet Kennz1_L (hidden)
C3: =Bilanz_Daten!C3 -> Lernmodul M 04
C4: =Bilanz_Daten!C4 -> Betriebswirtschaftliche Kennzahlen
C6: =Bilanz_Daten!C6 -> Thema: Fallbeispiel zur Bilanz- und Erfolgsanalyse
C8: 6. Teil Bilanzanalyse
C9: 6.1 Analyse der Vermögensstruktur: Musterlösung
C11: Angaben in [1000 EUR] | F11: Berichtsjahr | G11: Vorjahr
E12: Anlagevermögen | F12: =Strukturbilanz_L!D15 -> 6705 | G12: =Strukturbilanz_L!F15 -> 6350
E13: Umlaufvermögen | F13: =Strukturbilanz_L!D21 -> 5295 | G13: =Strukturbilanz_L!F21 -> 5150
C14: Konstitution | F14: =F12/F13 -> 1.266288952 | G14: =G12/G13 -> 1.233009709
C16: Angaben in [1000 EUR] | F16: Berichtsjahr | G16: Vorjahr
E17: Anlagevermögen | F17: =Strukturbilanz_L!D15 -> 6705 | G17: =Strukturbilanz_L!F15 -> 6350
E18: Gesamtvermögen | F18: =Strukturbilanz_L!D22 -> 12000 | G18: =Strukturbilanz_L!F22 -> 11500
C19: Anlagenintensität [%] | F19: =F17*100/F18 -> 55.875 | G19: =G17*100/G18 -> 55.2173913
C21: Angaben in [1000 EUR] | F21: Berichtsjahr | G21: Vorjahr
E22: Umlaufvermögen | F22: =Strukturbilanz_L!D21 -> 5295 | G22: =Strukturbilanz_L!F21 -> 5150
E23: Gesamtvermögen | F23: =Strukturbilanz_L!D22 -> 12000 | G23: =Strukturbilanz_L!F22 -> 11500
C24: Umlaufmittelintensität [%] | F24: =F22*100/F23 -> 44.125 | G24: =G22*100/G23 -> 44.7826087
C26: 6.2 Analyse der Anlagendeckung: Musterlösung
C28: Angaben in [1000 EUR] | F28: Berichtsjahr | G28: Vorjahr
E29: Eigenkapital | F29: =Strukturbilanz_L!D29 -> 4790 | G29: =Strukturbilanz_L!F29 -> 3990
E30: Anlagevermögen | F30: =Strukturbilanz_L!D15 -> 6705 | G30: =Strukturbilanz_L!F15 -> 6350
C31: Deckungsgrad 1 [%] | F31: =F29*100/F30 -> 71.43922446 | G31: =G29*100/G30 -> 62.83464567
C33: Angaben in [1000 EUR] | F33: Berichtsjahr | G33: Vorjahr
E34: Eigenkapital | F34: =Strukturbilanz_L!D29 -> 4790 | G34: =Strukturbilanz_L!F29 -> 3990
E35: Langfr. Fremdkapital | F35: =Strukturbilanz_L!D32 -> 2630 | G35: =Strukturbilanz_L!F32 -> 3190
E36: Anlagevermögen | F36: =Strukturbilanz_L!D15 -> 6705 | G36: =Strukturbilanz_L!F15 -> 6350
C37: Deckungsgrad 2 [%] | F37: =(F34+F35)*100/F36 -> 110.6636838 | G37: =(G34+G35)*100/G36 -> 113.0708661
C40: Vermögensdeckungsrechnung | E40: Berichtsjahr | F40: Vorjahr | G40: Veränderung
C41: Eigenkapital | E41: =Strukturbilanz_L!D29 -> 4790 | F41: =Strukturbilanz_L!F29 -> 3990 | G41: =E41-F41 -> 800
C42: ./. Anlagevermögen | E42: =Strukturbilanz_L!D15 -> 6705 | F42: =Strukturbilanz_L!F15 -> 6350 | G42: =E42-F42 -> 355
C43: = Über- oder Unterdeckung
C44: durch Eigenkapital | E44: =E41-E42 -> -1915 | F44: =F41-F42 -> -2360
C45: + Langfristiges Fremdkapital | E45: =Strukturbilanz_L!D32 -> 2630 | F45: =Strukturbilanz_L!F32 -> 3190 | G45: =E45-F45 -> -560
C46: = langfr. Kapital zur Finanzierung
C47: des Umlaufvermögens | E47: =E44+E45 -> 715 | F47: =F44+F45 -> 830 | G47: =E47-F47 -> -115
C48: ./. Umlaufvermögen | E48: =Strukturbilanz_L!D21 -> 5295 | F48: =Strukturbilanz_L!F21 -> 5150 | G48: =E48-F48 -> 145
C49: = notwendiges kurzfrist. Fremdkapital zur
C50: Finanzierung des Umlaufvermögens | E50: =E47-E48 -> -4580 | F50: =F47-F48 -> -4320

Sheet Kennz2
C3: =Bilanz_Daten!C3 -> Lernmodul M 04
C4: =Bilanz_Daten!C4 -> Betriebswirtschaftliche Kennzahlen
C6: =Bilanz_Daten!C6 -> Thema: Fallbeispiel zur Bilanz- und Erfolgsanalyse
C8: =Kennz1!C8 -> 6. Teil Bilanzanalyse
C9: 6.3 Analyse der Kapitalausstattung
F11: Berichtsjahr | G11: Vorjahr
C14: Eigenkapitalquote [%]
F16: Berichtsjahr | G16: Vorjahr
C19: Grad der Verschuldung [%]
F21: Berichtsjahr | G21: Vorjahr
E22: Langfr. Fremdkapital
E23: Gesamtkapital
C24: Anteil des langfr. Fremdkapitals [%]
F26: Berichtsjahr | G26: Vorjahr
E27: Kurzfr. Fremdkapital
E28: Gesamtkapital
C29: Anteil des kurzfr. Fremdkapitals [%]
F31: Berichtsjahr | G31: Vorjahr
C34: Grad der Selbstfinanzierung [%]

Sheet Kennz2_L (hidden)
C3: =Bilanz_Daten!C3 -> Lernmodul M 04
C4: =Bilanz_Daten!C4 -> Betriebswirtschaftliche Kennzahlen
C6: =Bilanz_Daten!C6 -> Thema: Fallbeispiel zur Bilanz- und Erfolgsanalyse
C8: =Kennz1!C8 -> 6. Teil Bilanzanalyse
C9: 6.3 Analyse der Kapitalausstattung
F11: Berichtsjahr | G11: Vorjahr
E12: Eigenkapital | F12: =Strukturbilanz_L!D29 -> 4790 | G12: =Strukturbilanz_L!F29 -> 3990
E13: Gesamtkapital | F13: =Strukturbilanz_L!D38 -> 12000 | G13: =Strukturbilanz_L!F38 -> 11500
C14: Eigenkapitalquote [%] | F14: =F12*100/F13 -> 39.91666667 | G14: =G12*100/G13 -> 34.69565217
F16: Berichtsjahr | G16: Vorjahr
E17: Fremdkapital | F17: =Strukturbilanz_L!D32+Strukturbilanz_L!D37 -> 7210 | G17: =Strukturbilanz_L!F32+Strukturbilanz_L!F37 -> 7510
E18: Eigenkapital | F18: =Strukturbilanz_L!D29 -> 4790 | G18: =Strukturbilanz_L!F29 -> 3990
C19: Grad der Verschuldung [%] | F19: =F17*100/F18 -> 150.5219207 | G19: =G17*100/G18 -> 188.2205514
F21: Berichtsjahr | G21: Vorjahr
E22: Langfr. Fremdkapital | F22: =Strukturbilanz_L!D32 -> 2630 | G22: =Strukturbilanz_L!F32 -> 3190
E23: Gesamtkapital | F23: =Strukturbilanz_L!D38 -> 12000 | G23: =Strukturbilanz_L!F38 -> 11500
C24: Anteil des langfr. Fremdkapitals [%] | F24: =F22*100/F23 -> 21.91666667 | G24: =G22*100/G23 -> 27.73913043
F26: Berichtsjahr | G26: Vorjahr
E27: Kurzfr. Fremdkapital | F27: =Strukturbilanz_L!D37 -> 4580 | G27: =Strukturbilanz_L!F37 -> 4320
E28: Gesamtkapital | F28: =Strukturbilanz_L!D38 -> 12000 | G28: =Strukturbilanz_L!F38 -> 11500
C29: Anteil des kurzfr. Fremdkapitals [%] | F29: =F27*100/F28 -> 38.16666667 | G29: =G27*100/G28 -> 37.56521739
F31: Berichtsjahr | G31: Vorjahr
E32: Gewinnrücklagen | F32: =Strukturbilanz_L!D28 -> 1410 | G32: =Strukturbilanz_L!F28 -> 610
E33: Gesamtkapital | F33: =Strukturbilanz_L!D38 -> 12000 | G33: =Strukturbilanz_L!F38 -> 11500
C34: Grad der Selbstfinanzierung [%] | F34: =F32*100/F33 -> 11.75 | G34: =G32*100/G33 -> 5.304347826

Sheet Kennz3
C3: =Bilanz_Daten!C3 -> Lernmodul M 04
C4: =Bilanz_Daten!C4 -> Betriebswirtschaftliche Kennzahlen
C6: =Bilanz_Daten!C6 -> Thema: Fallbeispiel zur Bilanz- und Erfolgsanalyse
C8: 6. Bilanzanalyse
C9: 6.4 Analyse der Zahlungsbereitschaft (Liquidität)
F11: Berichtsjahr | G11: Vorjahr
C14: Liquiditätsgrad I (Barliquidität) [%]
F16: Berichtsjahr | G16: Vorjahr
E17: Flüssige Mittel
E18: Forderungen, Wertpapiere, ARA
E19: Kurzfr. Fremdkapital
C20: Liquiditätsgrad II (einzugsbedingte Liquidität) [%]
F22: Berichtsjahr | G22: Vorjahr
C25: Liquiditätsgrad III (umsatzbedingte Liquidität) [%]
C28: Liquiditäts-Staffelrechnung | E28: Berichtsjahr | F28: Vorjahr
C29: Flüssige Mittel
C30: ./.kurzfristiges Fremdkapital
C31: = Unterdeckung (1. Stufe)
C32: + Forderungen, Wertpapiere, ARA
C33: = Über- bzw. Unterdeckung (2. Stufe)
C34: + Vorräte
C35: = Überdeckung (3.Stufe)

Sheet Kennz3_L (hidden)
C3: =Bilanz_Daten!C3 -> Lernmodul M 04
C4: =Bilanz_Daten!C4 -> Betriebswirtschaftliche Kennzahlen
C6: =Bilanz_Daten!C6 -> Thema: Fallbeispiel zur Bilanz- und Erfolgsanalyse
C8: 6. Bilanzanalyse
C9: 6.4 Analyse der Zahlungsbereitschaft (Liquidität)
F11: Berichtsjahr | G11: Vorjahr
E12: Flüssige Mittel | F12: =Strukturbilanz_L!D19 -> 820 | G12: =Strukturbilanz_L!F19 -> 590
E13: Kurzfr. Fremdkapital | F13: =Strukturbilanz_L!D37 -> 4580 | G13: =Strukturbilanz_L!F37 -> 4320
C14: Liquiditätsgrad I (Barliquidität) [%] | F14: =F12*100/F13 -> 17.90393013 | G14: =G12*100/G13 -> 13.65740741
F16: Berichtsjahr | G16: Vorjahr
E17: Flüssige Mittel | F17: =Strukturbilanz_L!D19 -> 820 | G17: =Strukturbilanz_L!F19 -> 590
E18: Forderungen, Wertpapiere, ARA | F18: =Strukturbilanz_L!D17+Strukturbilanz_L!D18+Strukturbilanz_L!D20 -> 2245 | G18: =Strukturbilanz_L!F17+Strukturbilanz_L!F18+Strukturbilanz_L!F20 -> 1760
E19: Kurzfr. Fremdkapital | F19: =Strukturbilanz_L!D37 -> 4580 | G19: =Strukturbilanz_L!F37 -> 4320
C20: Liquiditätsgrad II (einzugsbedingte Liquidität) [%] | F20: =(F17+F18)*100/F19 -> 66.92139738 | G20: =(G17+G18)*100/G19 -> 54.39814815
F22: Berichtsjahr | G22: Vorjahr
E23: Umlaufvermögen | F23: =Strukturbilanz_L!D21 -> 5295 | G23: =Strukturbilanz_L!F21 -> 5150
E24: Kurzfr. Fremdkapital | F24: =Strukturbilanz_L!D37 -> 4580 | G24: =Strukturbilanz_L!F37 -> 4320
C25: Liquiditätsgrad III (umsatzbedingte Liquidität) [%] | F25: =F23*100/F24 -> 115.6113537 | G25: =G23*100/G24 -> 119.212963
C28: Liquiditäts-Staffelrechnung | E28: Berichtsjahr | F28: Vorjahr
C29: Flüssige Mittel | E29: =Strukturbilanz_L!D19 -> 820 | F29: =Strukturbilanz_L!F19 -> 590
C30: ./.kurzfristiges Fremdkapital | E30: =Strukturbilanz_L!D37 -> 4580 | F30: =Strukturbilanz_L!F37 -> 4320
C31: = Unterdeckung (1. Stufe) | E31: =E29-E30 -> -3760 | F31: =F29-F30 -> -3730
C32: + Forderungen, Wertpapiere, ARA | E32: =Strukturbilanz_L!D17+Strukturbilanz_L!D18+Strukturbilanz_L!D20 -> 2245 | F32: =Strukturbilanz_L!F17+Strukturbilanz_L!F18+Strukturbilanz_L!F20 -> 1760
C33: = Über- bzw. Unterdeckung (2. Stufe) | E33: =E31+E32 -> -1515 | F33: =F31+F32 -> -1970
C34: + Vorräte | E34: =Strukturbilanz_L!D16 -> 2230 | F34: =Strukturbilanz_L!F16 -> 2800
C35: = Überdeckung (3.Stufe) | E35: =E33+E34 -> 715 | F35: =F33+F34 -> 830

Sheet Kennz4
C3: =Bilanz_Daten!C3 -> Lernmodul M 04
B4: =Bilanz_Daten!B2 -> 0 | C4: =Bilanz_Daten!C4 -> Betriebswirtschaftliche Kennzahlen
C6: 7. Teil Erfolgsanalyse
C8: 7.1 Rentabilitätsanalyse
F10: Berichtsjahr | G10: Vorjahr
C13: Umsatzrentabilität [%]
F15: Berichtsjahr | G15: Vorjahr
E16: Jahresüberschuss
E17: + Steueraufwand
E18: - (+ - ) ao Ergebnis
E19: - (+ - ) Finanzergebnis
C20: EBIT [TEUR]
F22: Berichtsjahr | G22: Vorjahr
C25: EBIT-Marge [%]
F27: Berichtsjahr | G27: Vorjahr
E28: EBIT
C30: EBITDA [TEUR]
F32: Berichtsjahr | G32: Vorjahr
C35: EBITDA-Marge [%]
F37: Berichtsjahr | G37: Vorjahr
E38: Jahresüberschuss
E39: durchschn. Eigenkapital
C40: Eigenkapitalrentabilität [% p. a.]
F42: Berichtsjahr | G42: Vorjahr
C45: Eigenkapitalrentabilität [% p. a.]
F47: Berichtsjahr | G47: Vorjahr
E48: Jahresüberschuss
E49: Fremdkapitalzinsen
E50: durchschn. Gesamtkapital
C51: Gesamtkapitalrentabilität [% p. a.]
F53: Berichtsjahr | G53: Vorjahr
E54: EBIT
E55: Fremdkapitalzinsen
E56: durchschn. Gesamtkapital
C57: Gesamtkapitalrentabilität [% p. a.]

Sheet Kennz4_L (hidden)
C3: =Bilanz_Daten!C3 -> Lernmodul M 04
B4: =Bilanz_Daten!B2 -> 0 | C4: =Bilanz_Daten!C4 -> Betriebswirtschaftliche Kennzahlen
C6: 7. Teil Erfolgsanalyse
C8: 7.1 Rentabilitätsanalyse
F10: Berichtsjahr | G10: Vorjahr
E11: Betriebsergebnis | F11: =GuV_Daten!E22 -> 1366 | G11: =GuV_Daten!G22 -> 1195
E12: Umsatzerlöse | F12: =GuV_Daten!F12 -> 49560 | G12: =GuV_Daten!H12 -> 43670
C13: Umsatzrentabilität [%] | F13: =F11*100/F12 -> 2.756255044 | G13: =G11*100/G12 -> 2.736432333
F15: Berichtsjahr | G15: Vorjahr
E16: Jahresüberschuss | F16: =GuV_Daten!E35 -> 1026 | G16: =GuV_Daten!G35 -> 745
E17: + Steueraufwand | F17: =GuV_Daten!E33+GuV_Daten!E34 -> 420 | G17: =GuV_Daten!G33+GuV_Daten!G34 -> 390
E18: - (+ - ) ao Ergebnis | F18: =GuV_Daten!E31 -> 40 | G18: =GuV_Daten!G31 -> 60
E19: - (+ - ) Finanzergebnis | F19: =GuV_Daten!E27 -> 40 | G19: =GuV_Daten!H27 -> -120
C20: EBIT [TEUR] | F20: =F16+F17-F18-F19 -> 1366 | G20: =G16+G17-G18-G19 -> 1195
F22: Berichtsjahr | G22: Vorjahr
E23: EBIT | F23: =F20 -> 1366 | G23: =G20 -> 1195
E24: Umsatzerlöse | F24: =GuV_Daten!F12 -> 49560 | G24: =GuV_Daten!H12 -> 43670
C25: EBIT-Marge [%] | F25: =F23*100/F24 -> 2.756255044 | G25: =G23*100/G24 -> 2.736432333
F27: Berichtsjahr | G27: Vorjahr
E28: EBIT | F28: =F20 -> 1366 | G28: =G20 -> 1195
E29: + Abschreibungen | F29: =GuV_Daten!E19 -> 2720 | G29: =GuV_Daten!G19 -> 2380
C30: EBITDA [TEUR] | F30: =F28+F29 -> 4086 | G30: =G28+G29 -> 3575
F32: Berichtsjahr | G32: Vorjahr
E33: EBITDA | F33: =F30 -> 4086 | G33: =G30 -> 3575
E34: Umsatzerlöse | F34: =GuV_Daten!F12 -> 49560 | G34: =GuV_Daten!H12 -> 43670
C35: EBITDA-Marge [%] | F35: =F33*100/F34 -> 8.244552058 | G35: =G33*100/G34 -> 8.186397985
F37: Berichtsjahr | G37: Vorjahr
E38: Jahresüberschuss | F38: =GuV_Daten!E35 -> 1026 | G38: =GuV_Daten!G35 -> 745
E39: durchschn. Eigenkapital | F39: =(Strukturbilanz_L!D29+Strukturbilanz_L!F29)/2 -> 4390 | G39: =Strukturbilanz_L!F29 -> 3990
C40: Eigenkapitalrentabilität [% p. a.] | F40: =F38*100/F39 -> 23.37129841 | G40: =G38*100/G39 -> 18.6716792
F42: Berichtsjahr | G42: Vorjahr
E43: EBIT | F43: =F20 -> 1366 | G43: =G20 -> 1195
E44: durchschn. Eigenkapital | F44: =F39 -> 4390 | G44: =G39 -> 3990
C45: Eigenkapitalrentabilität [% p. a.] | F45: =F43*100/F44 -> 31.11617312 | G45: =G43*100/G44 -> 29.94987469
F47: Berichtsjahr | G47: Vorjahr
E48: Jahresüberschuss | F48: =GuV_Daten!E35 -> 1026 | G48: =GuV_Daten!G35 -> 745
E49: Fremdkapitalzinsen | F49: =GuV_Daten!E26 -> 455 | G49: =GuV_Daten!G26 -> 540
E50: durchschn. Gesamtkapital | F50: =(Strukturbilanz_L!D38+Strukturbilanz_L!F38)/2 -> 11750 | G50: =Strukturbilanz_L!F38 -> 11500
C51: Gesamtkapitalrentabilität [% p. a.] | F51: =(F48+F49)*100/F50 -> 12.60425532 | G51: =(G48+G49)*100/G50 -> 11.17391304
F53: Berichtsjahr | G53: Vorjahr
E54: EBIT | F54: =F20 -> 1366 | G54: =G20 -> 1195
E55: Fremdkapitalzinsen | F55: =GuV_Daten!E26 -> 455 | G55: =GuV_Daten!G26 -> 540
E56: durchschn. Gesamtkapital | F56: =F50 -> 11750 | G56: =G50 -> 11500
C57: Gesamtkapitalrentabilität [% p. a.] | F57: =(F54+F55)*100/F56 -> 15.49787234 | G57: =(G54+G55)*100/G56 -> 15.08695652

Sheet Kennz5
C3: =Bilanz_Daten!C3 -> Lernmodul M 04
C4: =Bilanz_Daten!C4 -> Betriebswirtschaftliche Kennzahlen
C6: =Bilanz_Daten!C6 -> Thema: Fallbeispiel zur Bilanz- und Erfolgsanalyse
C8: 7.2 Umschlagskennzahlen
F10: Berichtsjahr | G10: Vorjahr
E11: Materialaufwand
E12: durchschn. Materialbestand
C13: Lagerumschlagshäufigkeit [-/a]
C14: durchschn. Lagerdauer [d]
F16: Berichtsjahr | G16: Vorjahr
E17: Umsatzerlöse
E18: durchschn. Forderungsbestand
C19: Umschlagshäufigkeit der Forderungen [-/a]
C20: durchschn. Kreditdauer (Zahlungsziel) [d]
F22: Berichtsjahr | G22: Vorjahr
E23: Abschreibungen
E24: Abgänge vom Anlagevermögen
E25: durchschn. Anlagevermögen
C26: Umschlagshäufigkeit des Anlagevermögens [-/a]
F27: Berichtsjahr | G27: Vorjahr
E28: Umsatzerlöse
E29: durchschn. UV-Bestand
C30: Umschlagshäufigkeit des Umlaufvermögens [-/a]
F32: Berichtsjahr | G32: Vorjahr
C35: Umschlagszahl des Kapitals [-/a]
F37: Berichtsjahr | G37: Vorjahr
C40: Return on Investment [% p. a.]
C41: Rückflussdauer des Kapitals über das Betriebsergebnis [a]

Sheet Kennz5_L (hidden)
C3: =Bilanz_Daten!C3 -> Lernmodul M 04
C4: =Bilanz_Daten!C4 -> Betriebswirtschaftliche Kennzahlen
C6: =Bilanz_Daten!C6 -> Thema: Fallbeispiel zur Bilanz- und Erfolgsanalyse
C8: 7.2 Umschlagskennzahlen
F10: Berichtsjahr | G10: Vorjahr
E11: Materialaufwand | F11: =GuV_Daten!E17 -> 26560 | G11: =GuV_Daten!G17 -> 24260
E12: durchschn. Materialbestand | F12: =(Bilanz_Daten!H30 +Bilanz_Daten!I30)/2 -> 1150 | G12: =Bilanz_Daten!I30 -> 1290
C13: Lagerumschlagshäufigkeit [-/a] | F13: =F11/F12 -> 23.09565217 | G13: =G11/G12 -> 18.80620155
C14: durchschn. Lagerdauer [d] | F14: =360/F13 -> 15.5873494 | G14: =360/G13 -> 19.1426216
F16: Berichtsjahr | G16: Vorjahr
E17: Umsatzerlöse | F17: =GuV_Daten!F12 -> 49560 | G17: =GuV_Daten!H12 -> 43670
E18: durchschn. Forderungsbestand | F18: =(Bilanz_Daten!H33+Bilanz_Daten!I33)/2 -> 855 | G18: =Bilanz_Daten!I33 -> 580
C19: Umschlagshäufigkeit der Forderungen [-/a] | F19: =F17/F18 -> 57.96491228 | G19: =G17/G18 -> 75.29310345
C20: durchschn. Kreditdauer (Zahlungsziel) [d] | F20: =360/F19 -> 6.210653753 | G20: =360/G19 -> 4.781314403
F22: Berichtsjahr | G22: Vorjahr
E23: Abschreibungen | F23: =GuV_Daten!E19 -> 2720 | G23: =GuV_Daten!G19 -> 2380
E24: Abgänge vom Anlagevermögen | F24: 0 | G24: 0
E25: durchschn. Anlagevermögen | F25: =(Strukturbilanz_L!D15+Strukturbilanz_L!F15)/2 -> 6527.5 | G25: =Strukturbilanz_L!F15 -> 6350
C26: Umschlagshäufigkeit des Anlagevermögens [-/a] | F26: =(F23+F24)/F25 -> 0.4166985829 | G26: =(G23+G24)/G25 -> 0.3748031496
F27: Berichtsjahr | G27: Vorjahr
E28: Umsatzerlöse | F28: =GuV_Daten!F12 -> 49560 | G28: =GuV_Daten!H12 -> 43670
E29: durchschn. UV-Bestand | F29: =(Strukturbilanz_L!D21+Strukturbilanz_L!F21)/2 -> 5222.5 | G29: =Strukturbilanz_L!F21 -> 5150
C30: Umschlagshäufigkeit des Umlaufvermögens [-/a] | F30: =F28/F29 -> 9.489707994 | G30: =G28/G29 -> 8.47961165
F32: Berichtsjahr | G32: Vorjahr
E33: Umsatzerlöse | F33: =GuV_Daten!F12 -> 49560 | G33: =GuV_Daten!H12 -> 43670
E34: durchschn. Gesamtkapital | F34: =(Strukturbilanz_L!D38+Strukturbilanz_L!F38)/2 -> 11750 | G34: =Strukturbilanz_L!F38 -> 11500
C35: Umschlagszahl des Kapitals [-/a] | F35: =F33/F34 -> 4.21787234 | G35: =G33/G34 -> 3.797391304
F37: Berichtsjahr | G37: Vorjahr
E38: Umsatzrentabilität [%] | F38: =Kennz4_L!F13 -> 2.756255044 | G38: =Kennz4_L!G13 -> 2.736432333
E39: Umschlagszahl d. Kapitals ]-/a] | F39: =F35 -> 4.21787234 | G39: =G35 -> 3.797391304
C40: Return on Investment [% p. a.] | F40: =F38*F39 -> 11.62553191 | G40: =G38*G39 -> 10.39130435
C41: Rückflussdauer des Kapitals über das Betriebsergebnis [a] | F41: =100/F40 -> 8.601756955 | G41: =100/G40 -> 9.623430962

Sheet Kennz6
C3: =Bilanz_Daten!C3 -> Lernmodul M 04
C4: =Bilanz_Daten!C4 -> Betriebswirtschaftliche Kennzahlen
C6: =Bilanz_Daten!C6 -> Thema: Fallbeispiel zur Bilanz- und Erfolgsanalyse
C8: 7.3 Cashflow-Kennzahlen
F10: Berichtsjahr | G10: Vorjahr
E11: Operativer Cashflow
E12: Umsatzerlöse
C13: CF-Rate des Umsatzes [%]
F15: Berichtsjahr | G15: Vorjahr
E16: Verbindlichkeiten gesamt
E17: monetäres Umlaufervmögen
C18: Effektiv-Verschuldung
F20: Berichtsjahr | G20: Vorjahr
E21: Effektiv-Verschuldung
E22: Operativer Cashflow
C23: Dynamischer Verschuldungsgrad
F25: Berichtsjahr | G25: Vorjahr
E26: Operativer Cashflow
E27: Investitionen
C28: Investitionsdeckungsgrad aus Cashflow [%]

Sheet Kennz6_L (hidden)
C3: =Bilanz_Daten!C3 -> Lernmodul M 04
C4: =Bilanz_Daten!C4 -> Betriebswirtschaftliche Kennzahlen
C6: =Bilanz_Daten!C6 -> Thema: Fallbeispiel zur Bilanz- und Erfolgsanalyse
C8: 7.3 Cashflow-Kennzahlen
F10: Berichtsjahr | G10: Vorjahr
E11: Operativer Cashflow | F11: =Kapitalfluss_L!F23 -> 3635
E12: Umsatzerlöse | F12: =GuV_Daten!F12 -> 49560
C13: CF-Rate des Umsatzes [%] | F13: =F11*100/F12 -> 7.334543987
F15: Berichtsjahr | G15: Vorjahr
E16: Verbindlichkeiten gesamt | F16: =Strukturbilanz_L!D32+Strukturbilanz_L!D37 -> 7210
E17: monetäres Umlaufervmögen | F17: =SUM(Strukturbilanz_L!D17:D20) -> 3065
C18: Effektiv-Verschuldung | F18: =F16-F17 -> 4145
F20: Berichtsjahr | G20: Vorjahr
E21: Effektiv-Verschuldung | F21: =F18 -> 4145
E22: Operativer Cashflow | F22: =Kapitalfluss_L!F23 -> 3635
C23: Dynamischer Verschuldungsgrad | F23: =F21/F22 -> 1.140302613
F25: Berichtsjahr | G25: Vorjahr
E26: Operativer Cashflow | F26: =Kapitalfluss_L!F23 -> 3635
E27: Investitionen | F27: =Bilanz_Daten!I14 -> 3075
C28: Investitionsdeckungsgrad aus Cashflow [%] | F28: =F26*100/F27 -> 118.2113821
